fUST/lending_fUST_20260515
["ID","MTS","AMOUNT","RATE_DAILY","PERIOD"]
[422332622,1778836238000,-1125.97041865,9.094e-05,2]
[422332642,1778836238000,-848.69183059,0.00010075,2]
[422332638,1778836238000,-1483.23397754,0.00010075,2]
[422332640,1778836238000,-541.4830562,0.00010075,2]
[422332635,1778836238000,-1483.23397754,0.00010075,2]
[422332636,1778836238000,-1483.23397754,0.00010075,2]
[422332634,1778836238000,-1483.23397754,0.00010075,2]
[422332632,1778836238000,-1483.23397754,0.00010075,2]
[422332630,1778836238000,-1483.23397754,0.00010075,2]
[422332624,1778836238000,-420.71464079,9.487e-05,2]
[422332641,1778836238000,-1483.23397754,0.00010075,2]
[422332626,1778836238000,-12464.04289813,9.976e-05,2]
[422332683,1778836246000,-1483.23397754,0.00010075,2]
[422332688,1778836246000,-313.35056493,0.00010075,2]
[422332687,1778836246000,-1557.39567642,0.00010075,2]
[422332686,1778836246000,-1483.23397754,0.00010075,2]
[422332684,1778836246000,-1325.20387551,0.00010075,2]
[422332685,1778836246000,-158.03010203,0.00010075,2]
[422332682,1778836246000,-634.54214695,0.00010075,2]
[422332744,1778837431000,-777.60152261,8.675e-05,2]
[422332743,1778837431000,-1051.0,8e-05,2]
[422332746,1778837431000,-586.94081868,8.675e-05,2]
[422332804,1778837438000,-20027.16686162,0.00010076,2]
[422332807,1778837438000,-262835.32497705,0.00010076,2]
[422332821,1778837438000,-205.12,0.00010111,2]
[422332824,1778837438000,-217.6,0.00010116,2]
[422332822,1778837438000,-11015.55214477,0.00010114,2]
[422332810,1778837438000,-206.87,0.00010087,2]
[422332814,1778837438000,-203.74,0.00010088,2]
[422332817,1778837438000,-740.00321696,0.00010097,2]
[422332829,1778837438000,-225.67,0.0001012,2]
[422332833,1778837438000,-209.87,0.00010122,2]
[422332828,1778837438000,-207.54,0.00010116,2]
[422332832,1778837438000,-222.68,0.0001012,2]
[422332859,1778837438000,-537.6845,0.0001037,2]
[422332848,1778837438000,-414.06,0.00010201,2]
[422332850,1778837438000,-12134.87997511,0.00010214,2]
[422332837,1778837438000,-329.62,0.00010178,2]
[422332853,1778837438000,-1354.40726341,0.000103,2]
[422332852,1778837438000,-151.0,0.00010251,2]
[422332841,1778837438000,-363.18,0.00010184,2]
[422332844,1778837438000,-395.83,0.00010194,2]
[422332846,1778837438000,-424.96,0.00010201,2]
[422332839,1778837438000,-331.99,0.00010181,2]
[422332842,1778837438000,-336.81,0.00010186,2]
[422332855,1778837438000,-500.0,0.00010314,2]
[422332861,1778837438000,-500.0,0.0001037,2]
[422332801,1778837438000,-500.0,0.00010075,2]
[422332835,1778837438000,-354.8,0.00010175,2]
[422332795,1778837438000,-152.0,0.00010043,2]
[422332787,1778837438000,-500.0,0.0001,2]
[422332753,1778837438000,-969.73838831,8.763e-05,2]
[422332752,1778837438000,-209.25058163,8.675e-05,2]
[422332758,1778837438000,-4030.26161169,8.763e-05,2]
[422332760,1778837438000,-359.02800511,8.897e-05,2]
[422332762,1778837438000,-1658.43353213,9.572e-05,2]
[422332764,1778837438000,-2749.9640364,9.787e-05,2]
[422332766,1778837438000,-300.0,9.874e-05,2]
[422332773,1778837438000,-562.17,0.0001,2]
[422332768,1778837438000,-17256.59322017,9.875e-05,2]
[422332779,1778837438000,-500.0,0.0001,2]
[422332775,1778837438000,-500.0,0.0001,2]
[422332788,1778837438000,-1310.78580018,0.00010003,2]
[422332772,1778837438000,-1310.7858002,9.998e-05,2]
[422332770,1778837438000,-49513.04159123,9.976e-05,2]
[422332781,1778837438000,-500.0,0.0001,2]
[422332784,1778837438000,-500.0,0.0001,2]
[422332783,1778837438000,-500.0,0.0001,2]
[422332786,1778837438000,-515.55,0.0001,2]
[422332796,1778837438000,-152.0,0.00010057,2]
[422332785,1778837438000,-500.0,0.0001,2]
[422332789,1778837438000,-1310.78580018,0.00010007,2]
[422332793,1778837438000,-1310.78580018,0.00010016,2]
[422332798,1778837438000,-3434.0,0.00010073,2]
[422332791,1778837438000,-1310.78580018,0.00010012,2]
[422332777,1778837438000,-500.0,0.0001,2]
[422332863,1778837438000,-650.0,0.00010395,2]
[422332857,1778837438000,-500.0,0.00010349,2]
[422332881,1778837438000,-650.0,0.00010395,2]
[422332917,1778837438000,-650.0,0.00010395,2]
[422332934,1778837438000,-650.0,0.00010395,2]
[422332921,1778837438000,-650.0,0.00010395,2]
[422332932,1778837438000,-166.0,0.00010395,2]
[422332919,1778837438000,-650.0,0.00010395,2]
[422332928,1778837438000,-650.0,0.00010395,2]
[422332930,1778837438000,-650.0,0.00010395,2]
[422332923,1778837438000,-650.0,0.00010395,2]
[422332936,1778837438000,-650.0,0.00010395,2]
[422332937,1778837438000,-166.0,0.00010395,2]
[422332939,1778837438000,-650.0,0.00010395,2]
[422332950,1778837438000,-164.0,0.00010395,2]
[422332914,1778837438000,-650.0,0.00010395,2]
[422332952,1778837438000,-167.04656377,0.00010395,2]
[422332956,1778837438000,-1354.40726341,0.000104,2]
[422332957,1778837438000,-793.0,0.000104,2]
[422332948,1778837438000,-164.0,0.00010395,2]
[422332947,1778837438000,-180.26248027,0.00010395,2]
[422332945,1778837438000,-180.0,0.00010395,2]
[422332943,1778837438000,-180.0,0.00010395,2]
[422332961,1778837438000,-443.0,0.00010474,2]
[422332959,1778837438000,-324.60153014,0.00010425,2]
[422332963,1778837438000,-185.0,0.00010474,2]
[422332965,1778837438000,-1354.40726341,0.000105,2]
[422332967,1778837438000,-705.767,0.0001055,2]
[422332875,1778837438000,-650.0,0.00010395,2]
[422332954,1778837438000,-166.0,0.00010395,2]
[422332916,1778837438000,-650.0,0.00010395,2]
[422332941,1778837438000,-578.77188437,0.00010395,2]
[422332925,1778837438000,-650.0,0.00010395,2]
[422332883,1778837438000,-650.0,0.00010395,2]
[422332927,1778837438000,-650.0,0.00010395,2]
[422332877,1778837438000,-650.0,0.00010395,2]
[422332870,1778837438000,-650.0,0.00010395,2]
[422332879,1778837438000,-650.0,0.00010395,2]
[422332864,1778837438000,-650.0,0.00010395,2]
[422332866,1778837438000,-650.0,0.00010395,2]
[422332872,1778837438000,-650.0,0.00010395,2]
[422332874,1778837438000,-650.0,0.00010395,2]
[422332885,1778837438000,-650.0,0.00010395,2]
[422332887,1778837438000,-650.0,0.00010395,2]
[422332888,1778837438000,-650.0,0.00010395,2]
[422332889,1778837438000,-650.0,0.00010395,2]
[422332868,1778837438000,-650.0,0.00010395,2]
[422332891,1778837438000,-650.0,0.00010395,2]
[422332897,1778837438000,-650.0,0.00010395,2]
[422332905,1778837438000,-650.0,0.00010395,2]
[422332908,1778837438000,-650.0,0.00010395,2]
[422332910,1778837438000,-650.0,0.00010395,2]
[422332906,1778837438000,-650.0,0.00010395,2]
[422332912,1778837438000,-650.0,0.00010395,2]
[422332895,1778837438000,-650.0,0.00010395,2]
[422332901,1778837438000,-650.0,0.00010395,2]
[422332903,1778837438000,-650.0,0.00010395,2]
[422332893,1778837438000,-650.0,0.00010395,2]
[422332899,1778837438000,-650.0,0.00010395,2]
[422333050,1778837439000,-500.0,0.00010958,2]
[422333048,1778837439000,-158.64578164,0.00010958,2]
[422333042,1778837439000,-623.08,0.00010958,2]
[422333046,1778837439000,-1068.304753,0.00010958,2]
[422333044,1778837439000,-626.5587542,0.00010958,2]
[422333039,1778837439000,-1710.32,0.00010958,2]
[422333035,1778837439000,-513.92,0.00010958,2]
[422333037,1778837439000,-500.0,0.00010958,2]
[422333033,1778837439000,-293.36386067,0.00010958,2]
[422333029,1778837439000,-500.0,0.00010958,2]
[422333031,1778837439000,-500.0,0.00010958,2]
[422333054,1778837439000,-593.58,0.00010958,2]
[422333041,1778837439000,-500.0,0.00010958,2]
[422333052,1778837439000,-500.0,0.00010958,2]
[422333077,1778837439000,-500.0,0.00010958,2]
[422333067,1778837439000,-500.0,0.00010958,2]
[422333060,1778837439000,-500.0,0.00010958,2]
[422333056,1778837439000,-500.0,0.00010958,2]
[422333062,1778837439000,-502.15752605,0.00010958,2]
[422333070,1778837439000,-500.0,0.00010958,2]
[422333065,1778837439000,-500.0,0.00010958,2]
[422333075,1778837439000,-500.0,0.00010958,2]
[422333071,1778837439000,-500.0,0.00010958,2]
[422333064,1778837439000,-500.0,0.00010958,2]
[422333073,1778837439000,-500.0,0.00010958,2]
[422333080,1778837439000,-309.87205085,0.00010958,2]
[422333090,1778837439000,-500.0,0.00010958,2]
[422333020,1778837439000,-1068.304753,0.00010958,2]
[422333058,1778837439000,-500.0,0.00010958,2]
[422333024,1778837439000,-500.0,0.00010958,2]
[422332970,1778837439000,-500.0,0.00010623,2]
[422333013,1778837439000,-904.5022,0.00010958,2]
[422333091,1778837439000,-503.28199141,0.00010958,2]
[422332976,1778837439000,-16024.91938688,0.00010649,2]
[422332969,1778837439000,-1354.40726341,0.000106,2]
[422332974,1778837439000,-152.0,0.0001064,30]
[422332979,1778837439000,-264.627,0.00010747,2]
[422332972,1778837439000,-152.0,0.00010628,30]
[422332984,1778837439000,-160.0,0.00010792,2]
[422332983,1778837439000,-160.0,0.00010792,2]
[422332978,1778837439000,-1354.40726341,0.000107,2]
[422332981,1778837439000,-740.45016919,0.0001078,2]
[422332986,1778837439000,-161.65638237,0.00010792,2]
[422332990,1778837439000,-1354.40726341,0.000108,2]
[422332991,1778837439000,-152.0,0.00010805,7]
[422333015,1778837439000,-500.0,0.00010958,2]
[422332988,1778837439000,-160.0,0.00010792,2]
[422332999,1778837439000,-423.65304603,0.00010897,2]
[422333002,1778837439000,-800.0,0.000109,60]
[422332997,1778837439000,-800.0,0.0001088,2]
[422333006,1778837439000,-500.0,0.00010918,2]
[422333004,1778837439000,-1354.40726341,0.000109,2]
[422333001,1778837439000,-500.0,0.00010897,2]
[422332995,1778837439000,-420.0,0.00010861,2]
[422333007,1778837439000,-345.65939145,0.00010956,21]
[422333010,1778837439000,-3165.7281,0.00010958,2]
[422333022,1778837439000,-500.0,0.00010958,2]
[422333012,1778837439000,-2261.226,0.00010958,2]
[422333025,1778837439000,-500.0,0.00010958,2]
[422333028,1778837439000,-500.0,0.00010958,2]
[422332993,1778837439000,-152.0,0.00010805,7]
[422333093,1778837439000,-500.0,0.00010958,2]
[422333196,1778837439000,-500.0,0.00010958,2]
[422333086,1778837439000,-500.0,0.00010958,2]
[422333137,1778837439000,-941.28,0.00010958,2]
[422333154,1778837439000,-500.0,0.00010958,2]
[422333156,1778837439000,-500.0,0.00010958,2]
[422333162,1778837439000,-500.0,0.00010958,2]
[422333160,1778837439000,-500.0,0.00010958,2]
[422333163,1778837439000,-1712.75,0.00010958,2]
[422333167,1778837439000,-500.0,0.00010958,2]
[422333166,1778837439000,-500.0,0.00010958,2]
[422333173,1778837439000,-500.0,0.00010958,2]
[422333175,1778837439000,-500.0,0.00010958,2]
[422333177,1778837439000,-500.0,0.00010958,2]
[422333158,1778837439000,-2048.24,0.00010958,2]
[422333171,1778837439000,-500.0,0.00010958,2]
[422333139,1778837439000,-859.17,0.00010958,2]
[422333169,1778837439000,-500.0,0.00010958,2]
[422333183,1778837439000,-500.0,0.00010958,2]
[422333194,1778837439000,-500.0,0.00010958,2]
[422333198,1778837439000,-2199.56,0.00010958,2]
[422333184,1778837439000,-840.41,0.00010958,2]
[422333186,1778837439000,-500.0,0.00010958,2]
[422333190,1778837439000,-500.0,0.00010958,2]
[422333192,1778837439000,-151.0,0.00010958,2]
[422333200,1778837439000,-1303.91,0.00010958,2]
[422333189,1778837439000,-500.0,0.00010958,2]
[422333202,1778837439000,-850.68,0.00010958,2]
[422333204,1778837439000,-2822.13,0.00010958,2]
[422333095,1778837439000,-500.0,0.00010958,2]
[422333205,1778837439000,-500.0,0.00010958,2]
[422333181,1778837439000,-500.0,0.00010958,2]
[422333145,1778837439000,-500.0,0.00010958,2]
[422333179,1778837439000,-500.0,0.00010958,2]
[422333152,1778837439000,-776.03,0.00010958,2]
[422333097,1778837439000,-500.0,0.00010958,2]
[422333141,1778837439000,-500.0,0.00010958,2]
[422333087,1778837439000,-500.0,0.00010958,2]
[422333084,1778837439000,-500.0,0.00010958,2]
[422333099,1778837439000,-500.0,0.00010958,2]
[422333103,1778837439000,-1216.15,0.00010958,2]
[422333101,1778837439000,-864.15,0.00010958,2]
[422333105,1778837439000,-500.0,0.00010958,2]
[422333107,1778837439000,-500.0,0.00010958,2]
[422333109,1778837439000,-500.0,0.00010958,2]
[422333112,1778837439000,-500.0,0.00010958,2]
[422333114,1778837439000,-500.0,0.00010958,2]
[422333111,1778837439000,-500.0,0.00010958,2]
[422333118,1778837439000,-500.0,0.00010958,2]
[422333082,1778837439000,-501.41065673,0.00010958,2]
[422333146,1778837439000,-500.0,0.00010958,2]
[422333116,1778837439000,-500.0,0.00010958,2]
[422333148,1778837439000,-500.0,0.00010958,2]
[422333150,1778837439000,-500.0,0.00010958,2]
[422333143,1778837439000,-755.64,0.00010958,2]
[422333133,1778837439000,-500.0,0.00010958,2]
[422333132,1778837439000,-1295.95,0.00010958,2]
[422333135,1778837439000,-2220.71,0.00010958,2]
[422333126,1778837439000,-500.0,0.00010958,2]
[422333124,1778837439000,-500.0,0.00010958,2]
[422333122,1778837439000,-500.0,0.00010958,2]
[422333120,1778837439000,-556.73885679,0.00010958,2]
[422333128,1778837439000,-500.6416397,0.00010958,2]
[422333130,1778837439000,-500.0,0.00010958,2]
[422333296,1778837440000,-500.0,0.00010958,2]
[422333286,1778837440000,-500.0,0.00010958,2]
[422333300,1778837440000,-4564.07,0.00010958,2]
[422333298,1778837440000,-500.0,0.00010958,2]
[422333294,1778837440000,-500.0,0.00010958,2]
[422333262,1778837440000,-679.82,0.00010958,2]
[422333267,1778837440000,-500.0,0.00010958,2]
[422333265,1778837440000,-500.0,0.00010958,2]
[422333264,1778837440000,-916.67,0.00010958,2]
[422333278,1778837440000,-500.0,0.00010958,2]
[422333282,1778837440000,-677.7303,0.00010958,2]
[422333260,1778837440000,-867.15,0.00010958,2]
[422333258,1778837440000,-2248.51,0.00010958,2]
[422333280,1778837440000,-503.25494355,0.00010958,2]
[422333284,1778837440000,-500.0,0.00010958,2]
[422333306,1778837440000,-662.69,0.00010958,2]
[422333292,1778837440000,-944.18,0.00010958,2]
[422333302,1778837440000,-500.0,0.00010958,2]
[422333290,1778837440000,-1000.0,0.00010958,2]
[422333304,1778837440000,-500.0,0.00010958,2]
[422333310,1778837440000,-946.35,0.00010958,2]
[422333318,1778837440000,-500.0,0.00010958,2]
[422333308,1778837440000,-500.0,0.00010958,2]
[422333314,1778837440000,-1104.9,0.00010958,2]
[422333312,1778837440000,-981.4,0.00010958,2]
[422333320,1778837440000,-850.99,0.00010958,2]
[422333322,1778837440000,-500.0,0.00010958,2]
[422333315,1778837440000,-554.16,0.00010958,2]
[422333317,1778837440000,-864.82,0.00010958,2]
[422333288,1778837440000,-500.0,0.00010958,2]
[422333276,1778837440000,-500.0,0.00010958,2]
[422333211,1778837440000,-500.0,0.00010958,2]
[422333273,1778837440000,-4386.69,0.00010958,2]
[422333324,1778837440000,-500.0,0.00010958,2]
[422333209,1778837440000,-500.0,0.00010958,2]
[422333207,1778837440000,-500.0,0.00010958,2]
[422333215,1778837440000,-958.18,0.00010958,2]
[422333217,1778837440000,-501.95560969,0.00010958,2]
[422333224,1778837440000,-500.0,0.00010958,2]
[422333213,1778837440000,-500.0,0.00010958,2]
[422333219,1778837440000,-500.0,0.00010958,2]
[422333221,1778837440000,-500.0,0.00010958,2]
[422333227,1778837440000,-1433.64,0.00010958,2]
[422333223,1778837440000,-500.0,0.00010958,2]
[422333229,1778837440000,-500.0,0.00010958,2]
[422333231,1778837440000,-500.0,0.00010958,2]
[422333249,1778837440000,-500.0,0.00010958,2]
[422333238,1778837440000,-500.0,0.00010958,2]
[422333236,1778837440000,-500.0,0.00010958,2]
[422333245,1778837440000,-500.0,0.00010958,2]
[422333233,1778837440000,-765.28,0.00010958,2]
[422333247,1778837440000,-500.0,0.00010958,2]
[422333234,1778837440000,-636.45,0.00010958,2]
[422333251,1778837440000,-748.81,0.00010958,2]
[422333243,1778837440000,-555.33,0.00010958,2]
[422333252,1778837440000,-500.0,0.00010958,2]
[422333240,1778837440000,-1583.18,0.00010958,2]
[422333242,1778837440000,-500.0,0.00010958,2]
[422333254,1778837440000,-500.0,0.00010958,2]
[422333256,1778837440000,-500.0,0.00010958,2]
[422333269,1778837440000,-668.58,0.00010958,2]
[422333271,1778837440000,-500.0,0.00010958,2]
[422333274,1778837440000,-894.99,0.00010958,2]
[422333328,1778837440000,-629.56,0.00010958,2]
[422333428,1778837440000,-502.52727587,0.00010958,2]
[422333332,1778837440000,-500.0,0.00010958,2]
[422333399,1778837440000,-500.0,0.00010958,2]
[422333397,1778837440000,-744.27,0.00010958,2]
[422333400,1778837440000,-540.08,0.00010958,2]
[422333402,1778837440000,-500.0,0.00010958,2]
[422333404,1778837440000,-759.53,0.00010958,2]
[422333406,1778837440000,-500.0,0.00010958,2]
[422333411,1778837440000,-640.86588744,0.00010958,2]
[422333415,1778837440000,-672.35,0.00010958,2]
[422333417,1778837440000,-500.0,0.00010958,2]
[422333413,1778837440000,-709.75,0.00010958,2]
[422333410,1778837440000,-500.0,0.00010958,2]
[422333424,1778837440000,-500.0,0.00010958,2]
[422333419,1778837440000,-500.0,0.00010958,2]
[422333382,1778837440000,-527.6,0.00010958,2]
[422333421,1778837440000,-500.0,0.00010958,2]
[422333408,1778837440000,-2708.96,0.00010958,2]
[422333426,1778837440000,-500.0,0.00010958,2]
[422333430,1778837440000,-500.0,0.00010958,2]
[422333433,1778837440000,-503.21753327,0.00010958,2]
[422333435,1778837440000,-246.23599032,0.00010958,2]
[422333437,1778837440000,-500.0,0.00010958,2]
[422333432,1778837440000,-500.0,0.00010958,2]
[422333439,1778837440000,-1035.59,0.00010958,2]
[422333441,1778837440000,-500.0,0.00010958,2]
[422333449,1778837440000,-1490.89,0.00010958,2]
[422333444,1778837440000,-4774.43,0.00010958,2]
[422333442,1778837440000,-500.0,0.00010958,2]
[422333448,1778837440000,-500.0,0.00010958,2]
[422333422,1778837440000,-500.0,0.00010958,2]
[422333393,1778837440000,-4627.99,0.00010958,2]
[422333446,1778837440000,-500.0,0.00010958,2]
[422333380,1778837440000,-2164.01,0.00010958,2]
[422333385,1778837440000,-2139.94,0.00010958,2]
[422333330,1778837440000,-572.90764758,0.00010958,2]
[422333333,1778837440000,-1087.21,0.00010958,2]
[422333335,1778837440000,-1089.47,0.00010958,2]
[422333341,1778837440000,-200.12751779,0.00010958,2]
[422333345,1778837440000,-500.0,0.00010958,2]
[422333343,1778837440000,-1680.66,0.00010958,2]
[422333337,1778837440000,-500.0,0.00010958,2]
[422333353,1778837440000,-500.0,0.00010958,2]
[422333352,1778837440000,-500.0,0.00010958,2]
[422333347,1778837440000,-500.0,0.00010958,2]
[422333349,1778837440000,-1170.1,0.00010958,2]
[422333339,1778837440000,-1963.32,0.00010958,2]
[422333355,1778837440000,-678.53,0.00010958,2]
[422333359,1778837440000,-500.0,0.00010958,2]
[422333326,1778837440000,-500.0,0.00010958,2]
[422333371,1778837440000,-500.0,0.00010958,2]
[422333358,1778837440000,-2240.12,0.00010958,2]
[422333389,1778837440000,-500.0,0.00010958,2]
[422333387,1778837440000,-1342.76,0.00010958,2]
[422333384,1778837440000,-500.0,0.00010958,2]
[422333395,1778837440000,-916.6,0.00010958,2]
[422333391,1778837440000,-500.0,0.00010958,2]
[422333379,1778837440000,-1891.12,0.00010958,2]
[422333375,1778837440000,-2136.609507,0.00010958,2]
[422333365,1778837440000,-500.0,0.00010958,2]
[422333373,1778837440000,-928.39,0.00010958,2]
[422333363,1778837440000,-500.0,0.00010958,2]
[422333361,1778837440000,-791.99,0.00010958,2]
[422333367,1778837440000,-500.0,0.00010958,2]
[422333377,1778837440000,-755.63,0.00010958,2]
[422333520,1778837441000,-156.06377,0.00010958,2]
[422333546,1778837441000,-2309.28,0.00010958,2]
[422333529,1778837441000,-500.0,0.00010958,2]
[422333527,1778837441000,-1335.47,0.00010958,2]
[422333516,1778837441000,-500.0,0.00010958,2]
[422333513,1778837441000,-501.90746529,0.00010958,2]
[422333521,1778837441000,-921.81,0.00010958,2]
[422333518,1778837441000,-500.0,0.00010958,2]
[422333525,1778837441000,-186.24216561,0.00010958,2]
[422333523,1778837441000,-616.31,0.00010958,2]
[422333514,1778837441000,-4504.42,0.00010958,2]
[422333544,1778837441000,-500.0,0.00010958,2]
[422333538,1778837441000,-485.98603274,0.00010958,2]
[422333542,1778837441000,-7391.85,0.00010958,2]
[422333531,1778837441000,-500.0,0.00010958,2]
[422333533,1778837441000,-2340.87,0.00010958,2]
[422333540,1778837441000,-500.0,0.00010958,2]
[422333537,1778837441000,-500.0,0.00010958,2]
[422333511,1778837441000,-1877.84,0.00010958,2]
[422333535,1778837441000,-500.0,0.00010958,2]
[422333563,1778837441000,-500.0,0.00010958,2]
[422333568,1778837441000,-500.0,0.00010958,2]
[422333566,1778837441000,-5008.87,0.00010958,2]
[422333564,1778837441000,-187.09899444,0.00010958,2]
[422333570,1778837441000,-500.0,0.00010958,2]
[422333555,1778837441000,-500.0,0.00010958,2]
[422333557,1778837441000,-503.14865545,0.00010958,2]
[422333548,1778837441000,-500.0,0.00010958,2]
[422333507,1778837441000,-500.0,0.00010958,2]
[422333500,1778837441000,-8616.86,0.00010958,2]
[422333505,1778837441000,-500.0,0.00010958,2]
[422333559,1778837441000,-500.0,0.00010958,2]
[422333451,1778837441000,-500.0,0.00010958,2]
[422333453,1778837441000,-703.68,0.00010958,2]
[422333455,1778837441000,-500.0,0.00010958,2]
[422333468,1778837441000,-503.18209013,0.00010958,2]
[422333470,1778837441000,-500.0,0.00010958,2]
[422333466,1778837441000,-500.0,0.00010958,2]
[422333472,1778837441000,-500.0,0.00010958,2]
[422333460,1778837441000,-500.0,0.00010958,2]
[422333458,1778837441000,-500.0,0.00010958,2]
[422333462,1778837441000,-500.0,0.00010958,2]
[422333456,1778837441000,-267.4320013,0.00010958,2]
[422333464,1778837441000,-518.51,0.00010958,2]
[422333509,1778837441000,-500.0,0.00010958,2]
[422333473,1778837441000,-500.0,0.00010958,2]
[422333479,1778837441000,-500.0,0.00010958,2]
[422333481,1778837441000,-500.0,0.00010958,2]
[422333483,1778837441000,-500.0,0.00010958,2]
[422333485,1778837441000,-500.0,0.00010958,2]
[422333487,1778837441000,-689.58,0.00010958,2]
[422333492,1778837441000,-500.0,0.00010958,2]
[422333491,1778837441000,-500.0,0.00010958,2]
[422333489,1778837441000,-873.02,0.00010958,2]
[422333502,1778837441000,-500.0,0.00010958,2]
[422333494,1778837441000,-500.0,0.00010958,2]
[422333504,1778837441000,-500.0,0.00010958,2]
[422333496,1778837441000,-502.36856904,0.00010958,2]
[422333498,1778837441000,-500.0,0.00010958,2]
[422333475,1778837441000,-1435.87,0.00010958,2]
[422333477,1778837441000,-500.0,0.00010958,2]
[422333572,1778837441000,-500.0,0.00010958,2]
[422333574,1778837441000,-10995.13,0.00010958,2]
[422333632,1778837441000,-970.29,0.00010958,2]
[422333631,1778837441000,-715.14,0.00010958,2]
[422333629,1778837441000,-500.0,0.00010958,2]
[422333624,1778837441000,-500.0,0.00010958,2]
[422333628,1778837441000,-3592.22,0.00010958,2]
[422333627,1778837441000,-500.0,0.00010958,2]
[422333635,1778837441000,-2955.84,0.00010958,2]
[422333638,1778837441000,-500.0,0.00010958,2]
[422333639,1778837441000,-508.63057186,0.00010958,2]
[422333637,1778837441000,-500.0,0.00010958,2]
[422333642,1778837441000,-897.18,0.00010958,2]
[422333636,1778837441000,-3251.73,0.00010958,2]
[422333648,1778837441000,-503.03234205,0.00010958,2]
[422333630,1778837441000,-500.0,0.00010958,2]
[422333641,1778837441000,-412.70987825,0.00010958,2]
[422333644,1778837441000,-8138.69,0.00010958,2]
[422333645,1778837441000,-500.0,0.00010958,2]
[422333647,1778837441000,-500.0,0.00010958,2]
[422333656,1778837441000,-500.0,0.00010958,2]
[422333658,1778837441000,-500.0,0.00010958,2]
[422333657,1778837441000,-712.25,0.00010958,2]
[422333650,1778837441000,-2619.15,0.00010958,2]
[422333649,1778837441000,-500.0,0.00010958,2]
[422333651,1778837441000,-500.0,0.00010958,2]
[422333652,1778837441000,-500.0,0.00010958,2]
[422333654,1778837441000,-8641.04,0.00010958,2]
[422333653,1778837441000,-500.0,0.00010958,2]
[422333561,1778837441000,-1680.27,0.00010958,2]
[422333640,1778837441000,-3286.29,0.00010958,2]
[422333626,1778837441000,-500.0,0.00010958,2]
[422333643,1778837441000,-771.1,0.00010958,2]
[422333625,1778837441000,-500.0,0.00010958,2]
[422333576,1778837441000,-3720.89,0.00010958,2]
[422333622,1778837441000,-500.0,0.00010958,2]
[422333580,1778837441000,-2087.15,0.00010958,2]
[422333578,1778837441000,-626.3,0.00010958,2]
[422333582,1778837441000,-500.0,0.00010958,2]
[422333584,1778837441000,-939.35,0.00010958,2]
[422333586,1778837441000,-856.2,0.00010958,2]
[422333589,1778837441000,-500.0,0.00010958,2]
[422333587,1778837441000,-1040.47,0.00010958,2]
[422333593,1778837441000,-629.97,0.00010958,2]
[422333591,1778837441000,-1412.03,0.00010958,2]
[422333597,1778837441000,-500.0,0.00010958,2]
[422333599,1778837441000,-519.14770983,0.00010958,2]
[422333612,1778837441000,-500.0,0.00010958,2]
[422333600,1778837441000,-500.0,0.00010958,2]
[422333595,1778837441000,-681.72,0.00010958,2]